[Event "Early-Titled-Tuesday-Blitz-May-28-2024"]
[Site "Chess.com"]
[Date "2024.05.28"]
[Round "3"]
[White "yobdc"]
[Black "jumpingknight20"]
[Result "0-1"]
[WhiteElo "2509"]
[BlackElo "2775"]
[TimeControl "180+1"]
[EndTime "8:27:49 PDT"]
[Termination "jumpingknight20 won by resignation"]

1. e4 {[%clk 0:03:00.9]} 1... g6 {[%clk 0:02:54.6]} 2. d4 {[%clk 0:03:00.1]}
2... Bg7 {[%clk 0:02:55.4]} 3. Nf3 {[%clk 0:03:00.5]} 3... d6 {[%clk 0:02:52.7]}
4. c4 {[%clk 0:03:00.5]} 4... c5 {[%clk 0:02:50]} 5. d5 {[%clk 0:02:56.5]} 5...
Nf6 {[%clk 0:02:39.2]} 6. Nc3 {[%clk 0:02:56]} 6... O-O {[%clk 0:02:39.6]} 7.
Be2 {[%clk 0:02:55.4]} 7... b5 {[%clk 0:02:38.1]} 8. cxb5 {[%clk 0:02:53.4]}
8... a6 {[%clk 0:02:38.7]} 9. a4 {[%clk 0:02:46.6]} 9... axb5 {[%clk 0:02:38.5]}
10. Bxb5 {[%clk 0:02:47.5]} 10... Ba6 {[%clk 0:02:38.5]} 11. Bg5 {[%clk
0:02:35.3]} 11... h6 {[%clk 0:02:17.6]} 12. Bd2 {[%clk 0:02:34.5]} 12... e6
{[%clk 0:01:46.1]} 13. O-O {[%clk 0:02:16]} 13... exd5 {[%clk 0:01:44.7]} 14.
exd5 {[%clk 0:02:16.5]} 14... Nbd7 {[%clk 0:01:25.2]} 15. Re1 {[%clk 0:02:00.4]}
15... Nb6 {[%clk 0:01:23.5]} 16. Bc6 {[%clk 0:01:59.5]} 16... Rb8 {[%clk
0:01:22]} 17. Nb5 {[%clk 0:01:36.8]} 17... Nbxd5 {[%clk 0:01:13.4]} 18. Ra3
{[%clk 0:01:20.6]} 18... Ne7 {[%clk 0:01:05.7]} 19. Be4 {[%clk 0:01:05.1]} 19...
Nxe4 {[%clk 0:01:01.9]} 20. Rxe4 {[%clk 0:01:06]} 20... Bxb5 {[%clk 0:00:59.1]}
21. axb5 {[%clk 0:01:06]} 21... Rxb5 {[%clk 0:00:59.7]} 22. Bc3 {[%clk
0:01:01.7]} 22... d5 {[%clk 0:00:53]} 23. Bxg7 {[%clk 0:00:52.3]} 23... dxe4
{[%clk 0:00:53.2]} 24. Qf1 {[%clk 0:00:35.5]} 24... Kxg7 {[%clk 0:00:45.5]} 25.
Ne5 {[%clk 0:00:28.8]} 25... Rxb2 {[%clk 0:00:40.6]} 26. Qa1 {[%clk 0:00:25.8]}
26... Qd4 {[%clk 0:00:39.9]} 27. Nc4 {[%clk 0:00:21.3]} 27... Qxf2+ {[%clk
0:00:39]} 0-1

[Event "Early-Titled-Tuesday-Blitz-May-28-2024"]
[Site "Chess.com"]
[Date "2024.05.28"]
[Round "3"]
[White "h4parah5"]
[Black "Bilan_Danila"]
[Result "1-0"]
[WhiteElo "3003"]
[BlackElo "2539"]
[TimeControl "180+1"]
[EndTime "8:27:50 PDT"]
[Termination "h4parah5 won by resignation"]

1. e4 {[%clk 0:03:00.9]} 1... c6 {[%clk 0:02:44.3]} 2. Nf3 {[%clk 0:02:58.6]}
2... d5 {[%clk 0:02:45.2]} 3. exd5 {[%clk 0:02:58.4]} 3... cxd5 {[%clk 0:02:45]}
4. Ne5 {[%clk 0:02:58.7]} 4... Nc6 {[%clk 0:02:43.4]} 5. Bb5 {[%clk 0:02:57.3]}
5... Bd7 {[%clk 0:02:41.9]} 6. Nxd7 {[%clk 0:02:57.2]} 6... Qxd7 {[%clk
0:02:42.3]} 7. d4 {[%clk 0:02:57.3]} 7... e6 {[%clk 0:02:42.3]} 8. c3 {[%clk
0:02:56.9]} 8... Nf6 {[%clk 0:02:42.3]} 9. Nd2 {[%clk 0:02:54.9]} 9... Bd6
{[%clk 0:02:42.1]} 10. O-O {[%clk 0:02:53.7]} 10... a6 {[%clk 0:02:37.9]} 11.
Bd3 {[%clk 0:02:53.5]} 11... b5 {[%clk 0:02:38.4]} 12. Qe2 {[%clk 0:02:48.1]}
12... b4 {[%clk 0:02:33.9]} 13. Bxa6 {[%clk 0:02:44.1]} 13... bxc3 {[%clk
0:02:32.2]} 14. bxc3 {[%clk 0:02:44.2]} 14... O-O {[%clk 0:02:27.7]} 15. Bb5
{[%clk 0:02:43.7]} 15... Qc7 {[%clk 0:02:24.7]} 16. g3 {[%clk 0:02:39.9]} 16...
Na7 {[%clk 0:02:17]} 17. c4 {[%clk 0:02:34]} 17... Nxb5 {[%clk 0:01:56.9]} 18.
cxb5 {[%clk 0:02:34.9]} 18... Qc3 {[%clk 0:01:55.4]} 19. Nb3 {[%clk 0:02:33]}
19... Ra4 {[%clk 0:01:40.9]} 20. Bg5 {[%clk 0:02:26.8]} 20... Ne4 {[%clk
0:01:37.2]} 21. Rfc1 {[%clk 0:02:25.4]} 21... Qb4 {[%clk 0:01:27.5]} 22. Be3
{[%clk 0:02:24.2]} 22... Nc3 {[%clk 0:01:19.3]} 23. Qd3 {[%clk 0:02:07.5]} 23...
Nxb5 {[%clk 0:01:09.1]} 24. Bd2 {[%clk 0:02:05.1]} 24... Qc4 {[%clk 0:00:44.1]}
25. Rxc4 {[%clk 0:02:02.3]} 25... dxc4 {[%clk 0:00:45]} 26. Qf1 {[%clk
0:01:52.9]} 26... cxb3 {[%clk 0:00:37]} 27. Qxb5 {[%clk 0:01:50.8]} 27... Rxa2
{[%clk 0:00:32]} 28. Rxa2 {[%clk 0:01:48.3]} 28... bxa2 {[%clk 0:00:32.9]} 29.
Qa4 {[%clk 0:01:47.8]} 29... Be7 {[%clk 0:00:26.8]} 30. Qxa2 {[%clk 0:01:46.1]}
30... Bf6 {[%clk 0:00:27.7]} 31. d5 {[%clk 0:01:42.9]} 31... exd5 {[%clk
0:00:28.6]} 32. Qxd5 {[%clk 0:01:42.4]} 32... Re8 {[%clk 0:00:28.4]} 33. Kg2
{[%clk 0:01:40.6]} 33... g6 {[%clk 0:00:28.3]} 34. Be3 {[%clk 0:01:39.9]} 34...
Kg7 {[%clk 0:00:27.9]} 35. g4 {[%clk 0:01:39.5]} 35... h6 {[%clk 0:00:25.4]} 36.
Qd7 {[%clk 0:01:36.9]} 36... Re6 {[%clk 0:00:25.2]} 37. Qc8 {[%clk 0:01:34.5]}
37... Bg5 {[%clk 0:00:24.1]} 38. Bd4+ {[%clk 0:01:31.9]} 38... Bf6 {[%clk
0:00:24.2]} 39. Bc5 {[%clk 0:01:31.9]} 39... Be7 {[%clk 0:00:24.2]} 40. Bxe7
{[%clk 0:01:31.1]} 40... Rxe7 {[%clk 0:00:24.7]} 41. Qc6 {[%clk 0:01:30.6]}
41... Re6 {[%clk 0:00:24.7]} 42. Qd5 {[%clk 0:01:30.1]} 42... Kh7 {[%clk
0:00:24.8]} 43. h4 {[%clk 0:01:28.9]} 43... Kg8 {[%clk 0:00:24.1]} 44. f4 {[%clk
0:01:28.4]} 44... Kh7 {[%clk 0:00:23.3]} 45. f5 {[%clk 0:01:26.4]} 45... gxf5
{[%clk 0:00:23.8]} 46. gxf5 {[%clk 0:01:26.4]} 46... Re7 {[%clk 0:00:24]} 47. f6
{[%clk 0:01:24.2]} 47... Ra7 {[%clk 0:00:22.4]} 48. Qe4+ {[%clk 0:01:22.4]}
48... Kh8 {[%clk 0:00:21.5]} 49. Qg4 {[%clk 0:01:18.7]} 1-0

[Event "Early-Titled-Tuesday-Blitz-May-28-2024"]
[Site "Chess.com"]
[Date "2024.05.28"]
[Round "3"]
[White "Naruto75_3"]
[Black "profedechess93"]
[Result "1-0"]
[WhiteElo "2412"]
[BlackElo "2589"]
[TimeControl "180+1"]
[EndTime "8:27:55 PDT"]
[Termination "Naruto75_3 won by resignation"]

1. d4 {[%clk 0:03:00.9]} 1... d5 {[%clk 0:02:57.2]} 2. c4 {[%clk 0:03:00]} 2...
c6 {[%clk 0:02:56.2]} 3. cxd5 {[%clk 0:02:58]} 3... cxd5 {[%clk 0:02:57]} 4. Nc3
{[%clk 0:02:58.3]} 4... Nf6 {[%clk 0:02:55.5]} 5. Bf4 {[%clk 0:02:58.6]} 5... a6
{[%clk 0:02:55.4]} 6. e3 {[%clk 0:02:58.6]} 6... Nc6 {[%clk 0:02:55.8]} 7. Bd3
{[%clk 0:02:58.2]} 7... e6 {[%clk 0:02:56.4]} 8. Nf3 {[%clk 0:02:58.1]} 8... Bd6
{[%clk 0:02:57.1]} 9. Bxd6 {[%clk 0:02:56.7]} 9... Qxd6 {[%clk 0:02:58]} 10. O-O
{[%clk 0:02:57.1]} 10... O-O {[%clk 0:02:58.6]} 11. Rc1 {[%clk 0:02:55.8]} 11...
e5 {[%clk 0:02:57.6]} 12. dxe5 {[%clk 0:02:54.7]} 12... Nxe5 {[%clk 0:02:58.5]}
13. Nxe5 {[%clk 0:02:54.3]} 13... Qxe5 {[%clk 0:02:59.4]} 14. Ne2 {[%clk
0:02:48.1]} 14... Qxb2 {[%clk 0:02:58.9]} 15. Bb1 {[%clk 0:02:45.1]} 15... Qe5
{[%clk 0:02:50.6]} 16. Nd4 {[%clk 0:02:44.2]} 16... Bd7 {[%clk 0:02:39.7]} 17.
Qb3 {[%clk 0:02:42.6]} 17... Rab8 {[%clk 0:02:33.6]} 18. Qb6 {[%clk 0:02:28.6]}
18... Qg5 {[%clk 0:01:48]} 19. Nf3 {[%clk 0:02:20.8]} 19... Qh5 {[%clk
0:01:44.4]} 20. Rc7 {[%clk 0:02:18]} 20... Bc6 {[%clk 0:01:11.4]} 21. Nd4 {[%clk
0:02:13.9]} 21... Nd7 {[%clk 0:01:09.7]} 22. Qa5 {[%clk 0:02:11.1]} 22... Ne5
{[%clk 0:01:02.6]} 23. Nxc6 {[%clk 0:02:06.6]} 23... bxc6 {[%clk 0:00:51.4]} 24.
Qc3 {[%clk 0:01:57.2]} 24... Rfe8 {[%clk 0:00:41.8]} 25. h3 {[%clk 0:01:49.8]}
25... h6 {[%clk 0:00:33.3]} 26. Qc2 {[%clk 0:01:40.7]} 26... g6 {[%clk
0:00:30.8]} 27. Qc5 {[%clk 0:01:26.3]} 27... Re6 {[%clk 0:00:23.3]} 28. Bc2
{[%clk 0:01:21.1]} 28... Rbe8 {[%clk 0:00:21.7]} 29. Bd1 {[%clk 0:01:16.7]}
29... Qh4 {[%clk 0:00:20.3]} 30. f4 {[%clk 0:01:12.5]} 30... Nd3 {[%clk
0:00:20]} 31. Qa7 {[%clk 0:01:12]} 31... Qg3 {[%clk 0:00:14.9]} 32. Bf3 {[%clk
0:01:08.6]} 32... Rxe3 {[%clk 0:00:13.4]} 33. Rxf7 {[%clk 0:01:08.1]} 1-0

[Event "Early-Titled-Tuesday-Blitz-May-28-2024"]
[Site "Chess.com"]
[Date "2024.05.28"]
[Round "3"]
[White "MaxLeto"]
[Black "vishwa_vijeta"]
[Result "0-1"]
[WhiteElo "2382"]
[BlackElo "2601"]
[TimeControl "180+1"]
[EndTime "8:27:55 PDT"]
[Termination "vishwa_vijeta won on time"]

1. g4 {[%clk 0:03:00.9]} 1... d5 {[%clk 0:02:55.8]} 2. Bg2 {[%clk 0:03:01.3]}
2... Bxg4 {[%clk 0:02:47.2]} 3. c4 {[%clk 0:03:01.2]} 3... c6 {[%clk 0:02:46.5]}
4. Qb3 {[%clk 0:03:01.5]} 4... Qd7 {[%clk 0:02:39.5]} 5. cxd5 {[%clk 0:03:00.9]}
5... cxd5 {[%clk 0:02:37.8]} 6. Bxd5 {[%clk 0:03:01.8]} 6... Nc6 {[%clk
0:02:37.3]} 7. Bxf7+ {[%clk 0:03:01.3]} 7... Kd8 {[%clk 0:02:37.5]} 8. Bxg8
{[%clk 0:02:35]} 8... Nd4 {[%clk 0:02:23.2]} 9. Qf7 {[%clk 0:02:24.7]} 9... Qc6
{[%clk 0:02:04.9]} 10. Qd5+ {[%clk 0:01:20.5]} 10... Qxd5 {[%clk 0:01:59.8]} 11.
Bxd5 {[%clk 0:01:21.4]} 11... Nc2+ {[%clk 0:01:59.8]} 12. Kd1 {[%clk 0:01:21.5]}
12... Nxa1 {[%clk 0:02:00.1]} 13. b3 {[%clk 0:00:48.1]} 13... Rc8 {[%clk
0:01:53.2]} 14. Bxb7 {[%clk 0:00:40.8]} 14... Rc2 {[%clk 0:01:43.4]} 15. Nc3
{[%clk 0:00:28.3]} 15... Bf5 {[%clk 0:01:41.7]} 16. e4 {[%clk 0:00:17]} 16...
Be6 {[%clk 0:01:23.3]} 17. Nge2 {[%clk 0:00:11.6]} 17... g6 {[%clk 0:01:04.7]}
18. Nd4 {[%clk 0:00:10.9]} 18... Bg4+ {[%clk 0:01:04.4]} 19. f3 {[%clk
0:00:10.4]} 19... Bg7 {[%clk 0:01:04.5]} 20. fxg4 {[%clk 0:00:01]} 20... Bxd4
{[%clk 0:01:02.8]} 21. Nb5 {[%clk 0:00:01.2]} 21... e5 {[%clk 0:01:00.6]} 22.
Nxd4 {[%clk 0:00:01]} 22... exd4 {[%clk 0:01:00.5]} 23. Ba6 {[%clk 0:00:01.3]}
23... Rxa2 {[%clk 0:00:59.8]} 24. Bc4 {[%clk 0:00:01.9]} 24... Rf8 {[%clk
0:00:55.7]} 25. d3 {[%clk 0:00:01.3]} 25... Nc2 {[%clk 0:00:53.2]} 26. Bg5+
{[%clk 0:00:01.2]} 26... Kd7 {[%clk 0:00:52.8]} 0-1

[Event "Early-Titled-Tuesday-Blitz-May-28-2024"]
[Site "Chess.com"]
[Date "2024.05.28"]
[Round "3"]
[White "LuisFSiles"]
[Black "dianamirza"]
[Result "1-0"]
[WhiteElo "2375"]
[BlackElo "2015"]
[TimeControl "180+1"]
[EndTime "8:27:56 PDT"]
[Termination "LuisFSiles won by checkmate"]

1. d4 {[%clk 0:03:00.9]} 1... Nf6 {[%clk 0:02:50.2]} 2. c4 {[%clk 0:03:00.3]}
2... c5 {[%clk 0:02:50.2]} 3. d5 {[%clk 0:02:57.4]} 3... b5 {[%clk 0:02:38.2]}
4. Nd2 {[%clk 0:02:54.7]} 4... g6 {[%clk 0:02:18.3]} 5. e4 {[%clk 0:02:53.1]}
5... d6 {[%clk 0:02:12.6]} 6. f4 {[%clk 0:02:52]} 6... Bg7 {[%clk 0:02:12]} 7.
Ngf3 {[%clk 0:02:43.3]} 7... O-O {[%clk 0:02:11.7]} 8. Bd3 {[%clk 0:02:43]} 8...
Bd7 {[%clk 0:01:53.3]} 9. O-O {[%clk 0:02:41.7]} 9... b4 {[%clk 0:01:51.8]} 10.
a3 {[%clk 0:02:29.1]} 10... a5 {[%clk 0:01:18]} 11. e5 {[%clk 0:02:12.2]} 11...
dxe5 {[%clk 0:01:07]} 12. fxe5 {[%clk 0:02:04.7]} 12... Ng4 {[%clk 0:01:00.2]}
13. Qe2 {[%clk 0:02:03.2]} 13... Bh6 {[%clk 0:00:38.6]} 14. Ne4 {[%clk
0:01:55.6]} 14... Bg7 {[%clk 0:00:33]} 15. Bf4 {[%clk 0:01:46.1]} 15... Qb6
{[%clk 0:00:30.1]} 16. h3 {[%clk 0:01:30.8]} 16... Nh6 {[%clk 0:00:18.6]} 17. g4
{[%clk 0:01:30.3]} 17... f5 {[%clk 0:00:17.2]} 18. exf6 {[%clk 0:01:24.4]} 18...
exf6 {[%clk 0:00:15.5]} 19. Qe3 {[%clk 0:01:00.6]} 19... Na6 {[%clk 0:00:12.5]}
20. Bxh6 {[%clk 0:00:58.3]} 20... f5 {[%clk 0:00:09.8]} 21. gxf5 {[%clk
0:00:49.7]} 21... gxf5 {[%clk 0:00:08.3]} 22. Bxg7 {[%clk 0:00:47.1]} 22... Kxg7
{[%clk 0:00:07.7]} 23. Neg5 {[%clk 0:00:39.5]} 23... Rg8 {[%clk 0:00:06]} 24.
Qe7+ {[%clk 0:00:32.9]} 24... Kh8 {[%clk 0:00:04.4]} 25. Qxh7# {[%clk
0:00:32.7]} 1-0

[Event "Early-Titled-Tuesday-Blitz-May-28-2024"]
[Site "Chess.com"]
[Date "2024.05.28"]
[Round "3"]
[White "Thunderbolt135"]
[Black "Kunalm64"]
[Result "0-1"]
[WhiteElo "2869"]
[BlackElo "2658"]
[TimeControl "180+1"]
[EndTime "8:27:59 PDT"]
[Termination "Kunalm64 won by resignation"]

1. Nf3 {[%clk 0:03:00.9]} 1... Nf6 {[%clk 0:02:59.7]} 2. d4 {[%clk 0:03:01.3]}
2... d5 {[%clk 0:03:00]} 3. c4 {[%clk 0:03:00.7]} 3... e6 {[%clk 0:03:00.3]} 4.
e3 {[%clk 0:03:01.2]} 4... c5 {[%clk 0:03:00.1]} 5. Nc3 {[%clk 0:03:00.1]} 5...
Nc6 {[%clk 0:03:00.7]} 6. cxd5 {[%clk 0:03:00.1]} 6... exd5 {[%clk 0:02:59.7]}
7. Bb5 {[%clk 0:02:59.8]} 7... cxd4 {[%clk 0:02:59]} 8. Nxd4 {[%clk 0:03:00.7]}
8... Bd7 {[%clk 0:02:59.1]} 9. O-O {[%clk 0:03:01.3]} 9... Be7 {[%clk
0:02:57.6]} 10. b3 {[%clk 0:03:01.6]} 10... O-O {[%clk 0:02:57.5]} 11. Bb2
{[%clk 0:03:02.1]} 11... Rc8 {[%clk 0:02:57.5]} 12. Rc1 {[%clk 0:03:00.3]} 12...
Re8 {[%clk 0:02:53.7]} 13. Nce2 {[%clk 0:02:43.3]} 13... Ne4 {[%clk 0:02:49.9]}
14. Bxc6 {[%clk 0:02:38.4]} 14... bxc6 {[%clk 0:02:48.6]} 15. Ng3 {[%clk
0:02:38.3]} 15... Nxg3 {[%clk 0:02:35.8]} 16. hxg3 {[%clk 0:02:39.2]} 16... c5
{[%clk 0:02:33.8]} 17. Ne2 {[%clk 0:02:32.3]} 17... Bb5 {[%clk 0:02:08.1]} 18.
Re1 {[%clk 0:02:32.6]} 18... Qa5 {[%clk 0:01:58]} 19. Nf4 {[%clk 0:02:24]} 19...
Qxa2 {[%clk 0:01:52]} 20. Qc2 {[%clk 0:02:08.8]} 20... c4 {[%clk 0:01:27.1]} 21.
Nxd5 {[%clk 0:02:06.2]} 21... Bf8 {[%clk 0:01:27.4]} 22. Qc3 {[%clk 0:00:33.8]}
22... Qxb3 {[%clk 0:01:19.7]} 23. Nf6+ {[%clk 0:00:27]} 23... gxf6 {[%clk
0:01:16.1]} 24. Qxf6 {[%clk 0:00:27.9]} 24... c3 {[%clk 0:01:15.4]} 25. Bxc3
{[%clk 0:00:23.6]} 25... Rxc3 {[%clk 0:01:08.1]} 26. Rxc3 {[%clk 0:00:24.5]}
26... Qe6 {[%clk 0:01:01.1]} 27. Qg5+ {[%clk 0:00:21.1]} 27... Bg7 {[%clk
0:01:01.3]} 28. Rc7 {[%clk 0:00:21.8]} 28... a6 {[%clk 0:00:58.7]} 29. Rec1
{[%clk 0:00:18.6]} 29... Qg6 {[%clk 0:00:58.5]} 30. Qf4 {[%clk 0:00:17.3]} 30...
Be5 {[%clk 0:00:57.3]} 31. Rc8 {[%clk 0:00:05.3]} 31... Bxf4 {[%clk 0:00:55.9]}
32. Rxe8+ {[%clk 0:00:06]} 32... Bxe8 {[%clk 0:00:56.1]} 0-1

[Event "Early-Titled-Tuesday-Blitz-May-28-2024"]
[Site "Chess.com"]
[Date "2024.05.28"]
[Round "3"]
[White "Chernov_Mikhail"]
[Black "KubaGepard"]
[Result "0-1"]
[WhiteElo "2323"]
[BlackElo "2575"]
[TimeControl "180+1"]
[EndTime "8:28:01 PDT"]
[Termination "KubaGepard won on time"]

1. e4 {[%clk 0:03:00.9]} 1... e5 {[%clk 0:02:59.5]} 2. Nf3 {[%clk 0:02:48.7]}
2... Nc6 {[%clk 0:02:56.3]} 3. Bc4 {[%clk 0:02:48.2]} 3... Bc5 {[%clk
0:02:55.6]} 4. c3 {[%clk 0:02:47.6]} 4... Nf6 {[%clk 0:02:55]} 5. d3 {[%clk
0:02:47.4]} 5... a6 {[%clk 0:02:52.4]} 6. a4 {[%clk 0:02:47]} 6... O-O {[%clk
0:02:51.3]} 7. O-O {[%clk 0:02:45.9]} 7... h6 {[%clk 0:02:49.8]} 8. Nbd2 {[%clk
0:02:28]} 8... Ba7 {[%clk 0:02:46.9]} 9. h3 {[%clk 0:02:17.4]} 9... d6 {[%clk
0:02:46.1]} 10. Re1 {[%clk 0:02:11.8]} 10... Be6 {[%clk 0:02:46.2]} 11. Bxe6
{[%clk 0:02:10.9]} 11... fxe6 {[%clk 0:02:46.5]} 12. Qb3 {[%clk 0:02:10.5]}
12... Qd7 {[%clk 0:02:42.9]} 13. Nf1 {[%clk 0:02:00.9]} 13... Nh5 {[%clk
0:02:37.3]} 14. Be3 {[%clk 0:01:58.5]} 14... Bxe3 {[%clk 0:02:30.9]} 15. Nxe3
{[%clk 0:01:50.9]} 15... Nf4 {[%clk 0:02:26]} 16. d4 {[%clk 0:00:59.6]} 16...
Nxh3+ {[%clk 0:02:24.6]} 17. Kf1 {[%clk 0:00:59.8]} 17... exd4 {[%clk
0:02:24.7]} 18. Nf5 {[%clk 0:00:43.4]} 18... Kh7 {[%clk 0:02:05.5]} 19. gxh3
{[%clk 0:00:38.2]} 19... exf5 {[%clk 0:02:00.8]} 20. Nxd4 {[%clk 0:00:37]} 20...
fxe4 {[%clk 0:01:57.2]} 21. Re3 {[%clk 0:00:27.6]} 21... Nxd4 {[%clk 0:01:51.5]}
22. cxd4 {[%clk 0:00:28.5]} 22... d5 {[%clk 0:01:51]} 23. Rc1 {[%clk 0:00:20.4]}
23... c6 {[%clk 0:01:49.7]} 24. Rg3 {[%clk 0:00:17.9]} 24... Rf7 {[%clk
0:01:48.6]} 25. Qe3 {[%clk 0:00:17.3]} 25... Raf8 {[%clk 0:01:48.2]} 26. Rg2
{[%clk 0:00:17.4]} 26... Rf3 {[%clk 0:01:47.3]} 27. Qe2 {[%clk 0:00:14.9]} 27...
Qxh3 {[%clk 0:01:47]} 28. Rc2 {[%clk 0:00:13.2]} 28... Qh1+ {[%clk 0:01:40.3]}
29. Rg1 {[%clk 0:00:13.4]} 29... Rxf2+ {[%clk 0:01:40.5]} 30. Qxf2 {[%clk
0:00:14.3]} 30... Rxf2+ {[%clk 0:01:40.1]} 31. Rxf2 {[%clk 0:00:15.2]} 31...
Qh3+ {[%clk 0:01:40.1]} 32. Rfg2 {[%clk 0:00:14.7]} 32... Qd3+ {[%clk
0:01:37.1]} 33. Ke1 {[%clk 0:00:13.9]} 33... Qb1+ {[%clk 0:01:35.6]} 34. Kf2
{[%clk 0:00:12.7]} 34... Qxb2+ {[%clk 0:01:35.5]} 35. Kg3 {[%clk 0:00:13.6]}
35... Qxd4 {[%clk 0:01:33.5]} 36. Kf4 {[%clk 0:00:13.6]} 36... e3+ {[%clk
0:01:33]} 37. Kf3 {[%clk 0:00:10.5]} 37... Qe4+ {[%clk 0:01:33]} 38. Ke2 {[%clk
0:00:10.8]} 38... g5 {[%clk 0:01:33.4]} 39. Rg4 {[%clk 0:00:09.5]} 39... Qe6
{[%clk 0:01:32.5]} 40. R1g3 {[%clk 0:00:05.8]} 40... c5 {[%clk 0:01:30.8]} 41.
a5 {[%clk 0:00:04]} 41... d4 {[%clk 0:01:29.4]} 42. Kd3 {[%clk 0:00:01]} 42...
e2 {[%clk 0:01:28.1]} 43. Re4 {[%clk 0:00:01.7]} 43... Qxe4+ {[%clk 0:01:27.3]}
44. Kxe4 {[%clk 0:00:02.1]} 44... e1=Q+ {[%clk 0:01:28.2]} 45. Kd5 {[%clk
0:00:02.5]} 45... Qxg3 {[%clk 0:01:28.1]} 0-1

[Event "Early-Titled-Tuesday-Blitz-May-28-2024"]
[Site "Chess.com"]
[Date "2024.05.28"]
[Round "3"]
[White "Rdeux42"]
[Black "CrushingKings"]
[Result "0-1"]
[WhiteElo "2403"]
[BlackElo "2607"]
[TimeControl "180+1"]
[EndTime "8:28:02 PDT"]
[Termination "CrushingKings won by checkmate"]

1. e4 {[%clk 0:03:00.9]} 1... g6 {[%clk 0:02:37.8]} 2. d4 {[%clk 0:03:00]} 2...
Bg7 {[%clk 0:02:37.8]} 3. Nc3 {[%clk 0:03:00.7]} 3... c6 {[%clk 0:02:38.4]} 4.
h3 {[%clk 0:03:00.3]} 4... d5 {[%clk 0:02:38.9]} 5. e5 {[%clk 0:03:00.2]} 5...
f6 {[%clk 0:02:37.5]} 6. f4 {[%clk 0:02:58.9]} 6... Nh6 {[%clk 0:02:37.4]} 7. g4
{[%clk 0:02:58.9]} 7... Nf7 {[%clk 0:02:36.1]} 8. Be3 {[%clk 0:02:58.5]} 8...
fxe5 {[%clk 0:02:35.1]} 9. dxe5 {[%clk 0:02:58.2]} 9... g5 {[%clk 0:02:35.7]}
10. Nf3 {[%clk 0:02:50.6]} 10... gxf4 {[%clk 0:02:34.2]} 11. Bxf4 {[%clk
0:02:51.5]} 11... Qb6 {[%clk 0:02:34.4]} 12. Qd2 {[%clk 0:02:36.1]} 12... Qxb2
{[%clk 0:02:25.9]} 13. Rb1 {[%clk 0:02:36.6]} 13... Qa3 {[%clk 0:02:25.6]} 14.
Bd3 {[%clk 0:02:33.8]} 14... O-O {[%clk 0:02:23]} 15. O-O {[%clk 0:02:30.4]}
15... Nd7 {[%clk 0:02:18.3]} 16. Rb3 {[%clk 0:02:15.4]} 16... Qc5+ {[%clk
0:02:08.4]} 17. Be3 {[%clk 0:02:12.9]} 17... Qa5 {[%clk 0:02:08.4]} 18. e6
{[%clk 0:02:10.5]} 18... Nfe5 {[%clk 0:02:08.2]} 19. exd7 {[%clk 0:00:51.2]}
19... Nxf3+ {[%clk 0:02:05.7]} 20. Rxf3 {[%clk 0:00:51.5]} 20... Rxf3 {[%clk
0:02:04.3]} 21. Bb6 {[%clk 0:00:46.7]} 21... axb6 {[%clk 0:00:37.1]} 22. d8=Q+
{[%clk 0:00:45]} 22... Kf7 {[%clk 0:00:37.7]} 23. Qe2 {[%clk 0:00:38.1]} 23...
Qc5+ {[%clk 0:00:36]} 24. Kg2 {[%clk 0:00:34]} 24... Bxg4 {[%clk 0:00:32.4]} 25.
Qxa8 {[%clk 0:00:20.6]} 25... Rg3+ {[%clk 0:00:32.2]} 26. Kxg3 {[%clk
0:00:19.6]} 26... Qg1+ {[%clk 0:00:32.9]} 27. Qg2 {[%clk 0:00:10]} 27... Be5+
{[%clk 0:00:33.1]} 28. Kxg4 {[%clk 0:00:10.1]} 28... Qxg2+ {[%clk 0:00:33.3]}
29. Kf5 {[%clk 0:00:09.6]} 29... Qf3+ {[%clk 0:00:33.5]} 30. Kxe5 {[%clk
0:00:09.5]} 30... Qf6# {[%clk 0:00:33.6]} 0-1

[Event "Early-Titled-Tuesday-Blitz-May-28-2024"]
[Site "Chess.com"]
[Date "2024.05.28"]
[Round "3"]
[White "Goryachkina"]
[Black "Rsnr"]
[Result "0-1"]
[WhiteElo "2687"]
[BlackElo "2911"]
[TimeControl "180+1"]
[EndTime "8:28:03 PDT"]
[Termination "Rsnr won on time"]

1. e4 {[%clk 0:02:59.5]} 1... c6 {[%clk 0:02:59.4]} 2. d4 {[%clk 0:02:58.6]}
2... d5 {[%clk 0:03:00.3]} 3. exd5 {[%clk 0:02:54.5]} 3... cxd5 {[%clk
0:03:01.2]} 4. Bd3 {[%clk 0:02:54.4]} 4... Nc6 {[%clk 0:03:01.2]} 5. c3 {[%clk
0:02:54.5]} 5... Qc7 {[%clk 0:03:01.8]} 6. Ne2 {[%clk 0:02:50.9]} 6... Bg4
{[%clk 0:03:01.8]} 7. O-O {[%clk 0:02:49.1]} 7... e6 {[%clk 0:03:02.2]} 8. h3
{[%clk 0:02:46.9]} 8... Bh5 {[%clk 0:02:54.9]} 9. Qe1 {[%clk 0:02:45]} 9... Nf6
{[%clk 0:02:48.1]} 10. Bf4 {[%clk 0:02:14]} 10... Bd6 {[%clk 0:02:34.9]} 11.
Bxd6 {[%clk 0:02:13.5]} 11... Qxd6 {[%clk 0:02:35.8]} 12. Na3 {[%clk 0:02:13.1]}
12... Bg6 {[%clk 0:02:25]} 13. Rd1 {[%clk 0:02:05.8]} 13... Bxd3 {[%clk
0:02:16.1]} 14. Rxd3 {[%clk 0:02:05]} 14... O-O {[%clk 0:02:17]} 15. Nc2 {[%clk
0:01:59.8]} 15... b5 {[%clk 0:02:14.6]} 16. Ne3 {[%clk 0:01:50.7]} 16... Rfc8
{[%clk 0:02:07.8]} 17. Ng4 {[%clk 0:01:31.1]} 17... Nd7 {[%clk 0:01:59.3]} 18.
Rg3 {[%clk 0:01:27.2]} 18... b4 {[%clk 0:01:58.5]} 19. Qd2 {[%clk 0:01:21.7]}
19... bxc3 {[%clk 0:01:51.2]} 20. bxc3 {[%clk 0:01:21.5]} 20... Ne7 {[%clk
0:01:51.5]} 21. Qg5 {[%clk 0:01:07.2]} 21... Ng6 {[%clk 0:01:18.4]} 22. h4
{[%clk 0:00:52.6]} 22... f6 {[%clk 0:01:05.3]} 23. Qh5 {[%clk 0:00:32.2]} 23...
Rab8 {[%clk 0:01:05.8]} 24. Ne3 {[%clk 0:00:21.1]} 24... Rb2 {[%clk 0:01:02.2]}
25. Re1 {[%clk 0:00:08.3]} 25... Rxa2 {[%clk 0:01:01.5]} 26. Qg4 {[%clk
0:00:02.3]} 26... f5 {[%clk 0:00:53]} 27. Nxf5 {[%clk 0:00:01.4]} 27... exf5
{[%clk 0:00:52.9]} 28. Qxf5 {[%clk 0:00:01.7]} 28... Rf8 {[%clk 0:00:51.7]} 29.
Qg4 {[%clk 0:00:01.6]} 29... Nf6 {[%clk 0:00:50]} 0-1